Cogmind - Beta 12 X3 @@@ ROGUE MODE // 2022.09.06 @ 07:19:09 Player: Exp. Geonium Core Result: Self-destructed Performance ------------- Evolutions (2) 1000 Regions Visited (8) 1600 Robots Destroyed (31) 155 Value Destroyed (647) 647 Prototype IDs (24) 480 Alien Tech Used (0) 0 Bonus (258) 258 TOTAL SCORE: 4140 Bonus ------- Aligned with FarCom 300 Friendly Fire -42 Cogmind --------- Core Integrity 488/550 Matter 213/300 Energy 280/280 System Corruption 0% Temperature Cool (9) Movement Rolling (120) Ox2 Location -8/Storage Parts ------- > --- POWER (1) -------- Heavy Ion Engine > --- PROPULSION (5) --- Armored Wheel Cesium-ion Thruster > --- UTILITY (3) ------ Coolant Injector Medium Storage Unit Hardened Light Armor Plating > --- WEAPON (2) ------- EM Shotgun Rocket Launcher > --- INVENTORY (10) --- Heavy Ion Engine Heavy Ion Engine Heavy Ion Engine Light Treads Faulty Aerolev Unit EM Shotgun YOLO Cannon Flail Peak State ------------ > --- POWER ------------ Heavy Ion Engine > --- PROPULSION ------- Light Treads Light Treads Armored Wheel Cesium-ion Thruster > --- UTILITY ---------- Coolant Injector Medium Storage Unit Hardened Light Armor Plating > --- WEAPON ----------- EM Shotgun EM Shotgun > --- INVENTORY -------- Heavy Ion Engine Heavy Ion Engine Heavy Ion Engine Aerolev Unit YOLO Cannon Rocket Launcher Flail [Rating: 24] Favorites ----------- Power Heavy Ion Engine Engine Heavy Ion Engine Propulsion Light Treads Treads Light Treads Leg Aluminum Leg Wheel Armored Wheel Flight Unit Cesium-ion Thruster Utility Hardened Light Armor Plating Device Coolant Injector Storage Medium Storage Unit Protection Hardened Light Armor Plating Weapon EM Shotgun Energy Gun EM Shotgun Ballistic Gun Heavy Assault Rifle Launcher Improved Grenade Launcher Build | -11 -10 -10 -9 -9 -9 -8 -8 -8 ------- Run | Scr Mat Min Mat Min Exi Min Mat Sto Slots Evolved 4 | . . . 2 . . . 2 . Power . | . . . . . . . . . Propulsion 3 | . . . 1 . . . 2 . Utility 1 | . . . 1 . . . . . Weapon . | . . . . . . . . . Parts Attached 16 | . 3 1 4 . 1 1 5 1 Power 1 | . . . . . 1 . . . Engine 1 | . . . . . 1 . . . Core . | . . . . . . . . . Reactor . | . . . . . . . . . Propulsion 5 | . 2 . 1 . . . 2 . Treads 3 | . 2 . 1 . . . . . Leg . | . . . . . . . . . Wheel 1 | . . . . . . . 1 . Hover . | . . . . . . . . . Flight 1 | . . . . . . . 1 . Utility 3 | . . . 2 . . . 1 . Device 1 | . . . . . . . 1 . Storage 1 | . . . 1 . . . . . Processor . | . . . . . . . . . Hackware . | . . . . . . . . . Protection 1 | . . . 1 . . . . . Artifact . | . . . . . . . . . Weapon 7 | . 1 1 1 . . 1 2 1 Energy Gun 4 | . 1 1 . . . . 2 . Energy Cannon . | . . . . . . . . . Ballistic Gun 1 | . . . 1 . . . . . Ballistic Cannon . | . . . . . . . . . Launcher 2 | . . . . . . 1 . 1 Special Weapon . | . . . . . . . . . Impact Weapon . | . . . . . . . . . Slashing Weapon . | . . . . . . . . . Piercing Weapon . | . . . . . . . . . Special Melee Weapon . | . . . . . . . . . Unidentified Prototypes 1 | . . . . . 1 . . . Parts Lost 8 | . . 2 . 1 . 1 2 2 Power . | . . . . . . . . . Propulsion 3 | . . . . 1 . . . 2 Utility . | . . . . . . . . . Weapon 5 | . . 2 . . . 1 2 . Highest Loss Streak 2 | . . 2 . 1 . 1 2 2 To Critical Strikes . | . . . . . . . . . Average Slot Usage (%) 77 | . 85 80 77 77 77 76 75 79 Engine 11 | . 14 14 11 11 11 11 9 9 Treads 22 | . 17 28 28 22 22 22 18 7 Wheel 1 | . . . . . . . 6 9 Storage 11 | . 14 14 11 11 11 11 9 9 Protection 8 | . . . 5 11 11 11 9 9 Energy Gun 11 | . 24 23 11 11 11 9 4 13 Ballistic Gun 8 | . 3 . 10 11 11 11 6 . Launcher 1 | . . . . . . . 6 5 Naked Turns . | . . . . . . . . . Heaviest Build 32 | 14 15 15 26 26 29 32 32 31 Greatest Support 60 | 20 40 40 60 40 40 40 40 40 Greatest Overweight (x) 2 | . . . . . . . . 2 Average Overweight (x) . | . . . . . . . . 1 Largest Inventory Capacity 10 | . 8 8 10 10 10 10 10 10 Average Capacity 9 | . 8 8 8 10 10 10 10 10 Most Carried 10 | . 8 8 8 9 10 10 10 9 Average Carried 9 | . 7 7 7 8 9 9 9 9 Final Capacity 10 | 8 8 8 10 10 10 10 10 10 Final Carried 10 | 6 8 7 8 9 10 9 9 9 Class Distribution -------------------- 100% | Mutant Dominant Class ---------------- Mutant | -10/Materials Mutant | -10/Mines Mutant | -9/Materials Mutant | -9/Mines Mutant | -9/Exiles Mutant | -8/Mines Mutant | -8/Materials Mutant | -8/Storage Resources | -11 -10 -10 -9 -9 -9 -8 -8 -8 ----------- Run | Scr Mat Min Mat Min Exi Min Mat Sto Matter Collected 418 | 192 . . 73 32 . 38 60 23 Remotely . | . . . . . . . . . Salvage Created 568 | . . 32 170 65 . 127 65 109 Parts 53 | . . 4 13 10 . 13 8 5 Haulers Intercepted 1 | . . . 1 . . . . . Recyclers Shooed . | . . . . . . . . . Parts Field Recycled . | . . . . . . . . . Retrieved Matter . | . . . . . . . . . Parts Self-Destructed . | . . . . . . . . . Prevented . | . . . . . . . . . Kills | -11 -10 -10 -9 -9 -9 -8 -8 -8 ------- Run | Scr Mat Min Mat Min Exi Min Mat Sto Combat Hostiles Destroyed 26 | . . 3 3 4 . 8 4 4 Guns 12 | . . 3 3 4 . 1 1 . AOE 14 | . . . . . . 7 3 4 Classes Destroyed 11 | . . 2 3 1 . 3 . 2 Worker 1 | . . . . . . 1 . . Builder 1 | . . . . . . . . 1 Tunneler 1 | . . . . 1 . . . . Hauler 1 | . . . 1 . . . . . Swarmer 16 | . . 2 . 4 . 7 3 . Grunt 4 | . . . 2 . . . . 2 Duelist 1 | . . . . . . . . 1 Sentry 3 | . . . 1 . . . 1 1 Demolisher 1 | . . 1 . . . . . . Hunter 1 | . . . . . . 1 . . Zionite 1 | . . . . . . 1 . . Best Kill Streak 5 | . . 2 2 4 . 5 4 5 Combat Bots Only 4 | . . 2 2 4 . 4 4 4 Max Kills in Single Turn 4 | . . 1 1 2 . 4 2 2 Gunslinging 1 | . . . . 1 . . . . Exploded 3 | . . . . . . 3 2 1 Melee . | . . . . . . . . . Uniques/NPCs Destroyed . | . . . . . . . . . Combat | -11 -10 -10 -9 -9 -9 -8 -8 -8 -------- Run | Scr Mat Min Mat Min Exi Min Mat Sto Damage Taken 1251 | . . 401 62 135 . 233 283 137 Core 199 | . . 58 12 36 . 31 47 15 Absorbed by Shields . | . . . . . . . . . Core Remaining (%) 85 | 100 . 76 . . . 80 . . Volleys Fired 45 | . . 7 7 7 . 13 6 5 Largest 2 | . . 2 2 2 . 2 2 1 Hottest 90 | . . 85 68 68 . 68 90 33 Shots Fired 69 | . . 10 12 14 . 19 9 5 Gun 59 | . . 10 12 14 . 17 6 . Cannon . | . . . . . . . . . Launcher 10 | . . . . . . 2 3 5 Special . | . . . . . . . . . Kinetic 23 | . . . 5 7 . 11 . . Thermal . | . . . . . . . . . Explosive 10 | . . . . . . 2 3 5 Electromagnetic 36 | . . 10 7 7 . 6 6 . Robot Hit Streak 11 | . . 7 7 4 . 7 9 11 Robot Miss Streak 2 | . . 1 1 1 . 2 2 . Penetration Max . | . . . . . . . . . Secondary Targets 3 | . . . . 3 . . . . Max Gunslinging Chain 1 | . . . . 1 . . . . Shots Hit Robots 49 | . . 7 10 9 . 15 6 2 Core Hits 50 | . . 5 7 5 . 11 8 14 Critical Kills . | . . . . . . . . . Critical Parts Destroyed . | . . . . . . . . . Critical Strikes . | . . . . . . . . . Melee Attacks . | . . . . . . . . . Impact . | . . . . . . . . . Slashing . | . . . . . . . . . Piercing . | . . . . . . . . . Sneak Attacks . | . . . . . . . . . Combat Hostiles . | . . . . . . . . . Follow-up Attacks . | . . . . . . . . . Damage Inflicted 1499 | . . 89 160 131 . 515 231 373 Guns 588 | . . 89 145 107 . 168 79 . Cannons . | . . . . . . . . . Explosions 856 | . . . . . . 331 152 373 Melee . | . . . . . . . . . Ramming 55 | . . . 15 24 . 16 . . Kinetic 217 | . . . 62 58 . 97 . . Thermal 129 | . . . . . . 129 . . Explosive 727 | . . . . . . 202 152 373 Electromagnetic 371 | . . 89 83 49 . 71 79 . Impact . | . . . . . . . . . Slashing . | . . . . . . . . . Piercing . | . . . . . . . . . Highest Corruption 1 | . . . 1 1 1 1 . . Average Corruption 1 | . . . 1 1 1 1 . . Corruption Purged . | . . . . . . . . . Corruption Blocked . | . . . . . . . . . Effects 8 | . . . . 3 . 5 . . Message Errors 3 | . . . . 2 . 1 . . Heat Flow Errors 2 | . . . . . . 2 . . Energy Discharges 1 | . . . . 1 . . . . Data Loss (minor) 2 | . . . . . . 2 . . Overload Shots . | . . . . . . . . . Overflow Damage 37 | . . . . . . 20 17 . Projectiles . | . . . . . . . . . Explosions 37 | . . . . . . 20 17 . Melee . | . . . . . . . . . Knockbacks . | . . . . . . . . . Impact . | . . . . . . . . . Kinetic . | . . . . . . . . . Secondary . | . . . . . . . . . Self-Inflicted Damage 143 | . . . . . . 29 114 . Shots 4 | . . . . . . 1 3 . Rammed 7 | . . . 1 3 . 3 . . Targets Rammed 9 | . . . 2 4 . 3 . . Kicked . | . . . . . . . . . Crushed 2 | . . . 1 1 . . . . Highest Temperature 158 | . . 72 13 84 . 158 99 23 Average Temperature 44 | . . 28 9 43 . 56 50 13 Received Heat Transfer 186 | . . 60 27 . . . 36 63 Siege Activations . | . . . . . . . . . Robots Corrupted . | . . . . . . . . . Combat Hostiles . | . . . . . . . . . Parts Fried 1 | . . . . . . 1 . . Impact Corruptions . | . . . . . . . . . Robots Melted . | . . . . . . . . . Combat Hostiles . | . . . . . . . . . Parts Melted . | . . . . . . . . . Heat Transferred 150 | . . . . . . 150 . . Parts Sabotaged . | . . . . . . . . . Parts Stolen . | . . . . . . . . . Parts Stripped . | . . . . . . . . . Power Chain Reactions 1 | . . . . . . 1 . . Missiles Intercepted . | . . . . . . . . . Alert | -11 -10 -10 -9 -9 -9 -8 -8 -8 ------- Run | Scr Mat Min Mat Min Exi Min Mat Sto Peak Influence 228 | . 23 83 144 155 . 142 204 228 Initial 85 | . . 8 27 55 . . 55 85 Average 84 | . 14 53 102 150 . 51 102 167 Maximum Alert Level 1 | . . . . . . . 1 1 Low Security (%) 96 | . 100 100 100 100 . 100 91 51 Level 1 3 | . . . . . . . 8 48 Level 2 . | . . . . . . . . . Level 3 . | . . . . . . . . . Level 4 . | . . . . . . . . . Level 5 . | . . . . . . . . . High Security . | . . . . . . . . . Max Security . | . . . . . . . . . Squads Dispatched 3 | . . . 1 . . . . 2 Investigation . | . . . . . . . . . Extermination . | . . . . . . . . . Reinforcement 3 | . . . 1 . . . . 2 Assault . | . . . . . . . . . Garrison . | . . . . . . . . . Intercept . | . . . . . . . . . Searches Triggered . | . . . . . . . . . Construction Impeded . | . . . . . . . . . Haulers Reinforced . | . . . . . . . . . Active Scanning Responses . | . . . . . . . . . Cargo Convoy Interrupts . | . . . . . . . . . Stealth | -11 -10 -10 -9 -9 -9 -8 -8 -8 --------- Run | Scr Mat Min Mat Min Exi Min Mat Sto Distress Signals . | . . . . . . . . . Communications Jammed . | . . . . . . . . . Distress Signals . | . . . . . . . . . Times Spotted 45 | . 2 16 5 4 . 5 8 5 Peak Tracking Total 11 | . 2 11 2 4 . 4 6 4 Tactical Retreats 1 | . . 1 . . . . . . Traps | -11 -10 -10 -9 -9 -9 -8 -8 -8 ------- Run | Scr Mat Min Mat Min Exi Min Mat Sto Traps Triggered 1 | . . . 1 . . . . . Indirectly . | . . . . . . . . . Trap Hack Attempts . | . . . . . . . . . Triggered . | . . . . . . . . . Disarmed . | . . . . . . . . . Reprogrammed . | . . . . . . . . . Reused . | . . . . . . . . . Traps Extracted . | . . . . . . . . . Installed . | . . . . . . . . . Triggered . | . . . . . . . . . Machines | -11 -10 -10 -9 -9 -9 -8 -8 -8 ---------- Run | Scr Mat Min Mat Min Exi Min Mat Sto Machines Disabled 2 | . . . . 1 . . . 1 Max in Single Turn 1 | . . . . 1 . . . 1 Machines Sabotaged . | . . . . . . . . . Overloaded Fab Kills . | . . . . . . . . . Hacking | -11 -10 -10 -9 -9 -9 -8 -8 -8 --------- Run | Scr Mat Min Mat Min Exi Min Mat Sto Machines Accessed 7 | . 1 . 1 . 2 . 3 . Terminals 5 | . 1 . 1 . . . 3 . Fabricators . | . . . . . . . . . Repair Stations . | . . . . . . . . . Recycling Units . | . . . . . . . . . Scanalyzers . | . . . . . . . . . Garrison Access . | . . . . . . . . . Total Hacks 15 | . 2 . 2 . 2 . 9 . Successful 9 | . 1 . 1 . 2 . 5 . Failed 6 | . 1 . 1 . . . 4 . Catastrophic 1 | . . . . . . . 1 . Database Lockouts . | . . . . . . . . . Manual 8 | . 1 . 2 . 1 . 4 . Terminals 13 | . 2 . 2 . . . 9 . Fabricators . | . . . . . . . . . Repair Stations . | . . . . . . . . . Recycling Units . | . . . . . . . . . Scanalyzers . | . . . . . . . . . Garrison Access . | . . . . . . . . . Terminal Hacks 9 | . 1 . 1 . 2 . 5 . Record 1 | . . . . . 1 . . . Level Access Points 1 | . . . . . . . 1 . Branch Access Points 2 | . 1 . 1 . . . . . Hauler Manifests 1 | . . . . . . . 1 . Zone Layout 3 | . . . . . . . 3 . EX-Prototype ID Bank 1 | . . . . . 1 . . . Fabricator Hacks . | . . . . . . . . . Repair Station Hacks . | . . . . . . . . . Recycling Unit Hacks . | . . . . . . . . . Scanalyzer . | . . . . . . . . . Garrison Access Hacks . | . . . . . . . . . Unauthorized Hacks . | . . . . . . . . . Terminals . | . . . . . . . . . Fabricators . | . . . . . . . . . Repair Stations . | . . . . . . . . . Recycling Units . | . . . . . . . . . Scanalyzers . | . . . . . . . . . Garrison Access . | . . . . . . . . . Data Cores Recovered . | . . . . . . . . . Used . | . . . . . . . . . Hacking Detections 4 | . 1 . 1 . . . 2 . Full Trace Events . | . . . . . . . . . Feedback Events . | . . . . . . . . . Feedback Blocked . | . . . . . . . . . Robot Schematics Acquired . | . . . . . . . . . Robots Built . | . . . . . . . . . Authchips . | . . . . . . . . . Time . | . . . . . . . . . Total Robot Build Rating . | . . . . . . . . . Part Schematics Acquired . | . . . . . . . . . Parts Built . | . . . . . . . . . Authchips . | . . . . . . . . . Time . | . . . . . . . . . Total Part Build Rating . | . . . . . . . . . Parts Repaired . | . . . . . . . . . Time . | . . . . . . . . . Parts Recycled . | . . . . . . . . . Recycled Matter . | . . . . . . . . . Retrieved Matter . | . . . . . . . . . Retrieved Components . | . . . . . . . . . Parts Scanalyzed . | . . . . . . . . . Part Schematics Acquired . | . . . . . . . . . Parts Damaged . | . . . . . . . . . Bothacking | -11 -10 -10 -9 -9 -9 -8 -8 -8 ------------ Run | Scr Mat Min Mat Min Exi Min Mat Sto Used RIF Installer . | . . . . . . . . . Robots Hacked . | . . . . . . . . . Non-combat . | . . . . . . . . . Combat . | . . . . . . . . . Robot Hacks Applied . | . . . . . . . . . Relay Couplers Released . | . . . . . . . . . Fabnet Peak Effective % . | . . . . . . . . . Robots Rewired . | . . . . . . . . . Allies Hacked . | . . . . . . . . . Hacks Repelled . | . . . . . . . . . Allies | -11 -10 -10 -9 -9 -9 -8 -8 -8 -------- Run | Scr Mat Min Mat Min Exi Min Mat Sto Total Allies . | . . . . . . . . . Largest Group . | . . . . . . . . . Highest-Rated Group . | . . . . . . . . . Highest-Rated Ally . | . . . . . . . . . Total Orders . | . . . . . . . . . Ally Attacks . | . . . . . . . . . Total Damage . | . . . . . . . . . Kills . | . . . . . . . . . Allies Corrupted . | . . . . . . . . . Allies Melted . | . . . . . . . . . Intel | -11 -10 -10 -9 -9 -9 -8 -8 -8 ------- Run | Scr Mat Min Mat Min Exi Min Mat Sto Robot Analysis Total . | . . . . . . . . . Derelict Logs Recovered 1 | . . 1 . . . . . . Drone Launches . | . . . . . . . . . Drone Recoveries . | . . . . . . . . . Exploration | -11 -10 -10 -9 -9 -9 -8 -8 -8 ------------- Run | Scr Mat Min Mat Min Exi Min Mat Sto Turns Passed 2279 | . 85 214 240 322 339 748 250 81 Spaces Moved 1233 | 1 50 114 121 184 211 361 141 50 Core . | . . . . . . . . . Treads 1183 | . 32 114 121 184 211 361 141 19 Legs 19 | 1 18 . . . . . . . Wheels 31 | . . . . . . . . 31 Hover . | . . . . . . . . . Flight . | . . . . . . . . . Fastest Speed 120 | 120 120 160 160 160 160 160 160 120 Average Speed 158 | 120 145 160 160 160 160 160 160 138 Slowest Speed 240 | 120 160 160 160 160 160 160 160 240 Overloaded Moves . | . . . . . . . . . Propulsion Burnouts . | . . . . . . . . . Robots Hopped . | . . . . . . . . . Cave-ins Triggered . | . . . . . . . . . Exploration Rate (%) 29 | 2 14 41 19 40 61 49 19 17 Regions Visited 8 Branch Regions 5 Pre-discovered Areas 3 | . . 2 . . 1 . . . Known Exits Taken 2 | . 1 . 1 . . . . . Unknown Exits Taken 6 | 1 . 1 . 1 1 1 1 . Scrap Searched 2 | . . . . 1 . 1 . . Spaces Dug 41 | . . . . . . . 41 . Terrain Destroyed 86 | . . . . . . 24 41 21 Melee . | . . . . . . . . . Projectile . | . . . . . . . . . AOE 86 | . . . . . . 24 41 21 Terrain Rammed . | . . . . . . . . . Walls Destroyed . | . . . . . . . . . Machines Disabled . | . . . . . . . . . Actions | -11 -10 -10 -9 -9 -9 -8 -8 -8 --------- Run | Scr Mat Min Mat Min Exi Min Mat Sto Total 1484 | . 65 136 153 195 213 511 155 56 Wait 152 | . . . 18 . . 132 2 . Move 1225 | . 49 113 120 183 210 360 140 50 Hop . | . . . . . . . . . Pick Up 13 | . 7 . 1 1 1 1 2 . Fast Attach 8 | . 1 . 4 . . . 3 . Attach 7 | . 2 1 . . 1 1 2 . Detach . | . . . . . . . . . Swap 1 | . . . . . . . . 1 Drop 9 | . 6 . 1 . 1 1 . . Fire 45 | . . 7 7 7 . 13 6 5 Melee . | . . . . . . . . . Ram . | . . . . . . . . . Kick . | . . . . . . . . . Crush 9 | . . . 2 4 . 3 . . Escape Stasis . | . . . . . . . . . Rewire 15 | . . 15 . . . . . . Trap . | . . . . . . . . . Miscellaneous . | . . . . . . . . . Route ------- -11/Scrapyard -10/Materials -10/Mines (discovered 2 exits: *Mat x2) -9/Materials (discovered 3 exits: *Mat / *Min x2) -9/Mines -9/Exiles -8/Mines -8/Materials (discovered 4 exits: Fac x3 / [*Sto]) -8/Storage History --------- Turn | Location | Event 1 | -11/Scrapyard | Discovered new exit (range 0) 1 | -11/Scrapyard | Entered Materials 49 | -10/Materials | Identified exit to Mines 86 | -10/Materials | Entered Mines 87 | -10/Mines | Learned location of Storage (-8) 115 | -10/Mines | Learned location of Mines (-8) 215 | -10/Mines | Assembled infested the area 220 | -10/Mines | Assisted by a Guerilla fighting off Assembled 284 | -10/Mines | Discovered new exit (range 9) 286 | -10/Mines | Discovered new exit (range 10) 300 | -10/Mines | Entered Materials 300 | -9/Materials | Evolved 2 slots: Propulsion x1, Utility x1 309 | -9/Materials | Build established: Mutant 463 | -9/Materials | Discovered new exit (range 16) 468 | -9/Materials | Identified exit to Mines 540 | -9/Materials | Entered Mines 688 | -9/Mines | Received a Rocket Launcher from a helpful Derelict 854 | -9/Mines | Deemed a non-threat by the Exiles lab entrance 855 | -9/Mines | Discovered new exit (range 5) 862 | -9/Mines | Entered Exiles 901 | -9/Exiles | Met 8R-AWN 928 | -9/Exiles | Met EX-HEX 971 | -9/Exiles | Met EX-BIN 994 | -9/Exiles | Aligned with FarCom system 995 | -9/Exiles | Given EX-Vault access code 1034 | -9/Exiles | Opened EX-Vault 1051 | -9/Exiles | Found YOLO Cannon 1086 | -9/Exiles | Warned to stay clear of 0b10 Research branches 1101 | -9/Exiles | Exiles lab attacked by MAIN.C 1139 | -9/Exiles | Learned location of Zion (-6) 1188 | -9/Exiles | Discovered new exit (range 10) 1201 | -9/Exiles | Left Exiles lab with YOLO Cannon 1201 | -9/Exiles | Entered Mines 1938 | -8/Mines | Discovered new exit (range 8) 1949 | -8/Mines | Entered Materials 1949 | -8/Materials | Evolved 2 slots: Propulsion x2 2178 | -8/Materials | Discovered new exit (range 13) 2178 | -8/Materials | Identified exit to Factory 2199 | -8/Materials | Entered Storage 2280 | -8/Storage | Self-destructed Last Messages --------------- 02225_ ALERT: Hostiles spotted, dispatching reinforcements to Terminal S007. 02225_ Lgt. Treads destroyed. 02231_ Critical hit (Destroy). 02233_ Recycling Unit disabled. 02234_ Critical hit (Burn: +37). 02237_ Y-45 Defender destroyed. 02241_ L-31 Rogue destroyed. 02247_ R-06 Scavenger collects Aluminum Leg. 02253_ U-05 Engineer builds a Wall. 02257_ Acquired 2 matter. 02258_ U-05 Engineer lays Concrete. 02261_ Acquired 21 matter. 02262_ U-05 Engineer lays Concrete. 02264_ K-01 Serf cleans the Transfer Shaft. 02265_ U-05 Engineer builds a Wall. 02273_ U-05 Engineer lays Concrete. 02276_ K-01 Serf cleans the Transfer Shaft. 02277_ U-05 Engineer lays Concrete. 02280_ Component Storage disabled. Map ----- +----------------------------------------------------+ | ???????????????????????????????????????? | | ???????????????????????????????????????? | | ???????????????????????????????????????? | | ???????????????????????????????????????? | | ???????????????????????????????????????? | | ???????????????????????????????????????? | | ???????????????????????????????????????? | | ???????????????????????????????????????? | | ???????????????????????????????????????? | | ??????????????????????g????????????????? | | ?????????????????????g?????????????????? | | ??????###??????????????????????????????? | | # ??""T"""#??????????g?????????????????? | | # #??????????????????????????? | | # #??????????????????????????? | | # """ """ #??????????????????????????? | | # ! """ """ #??????????Y???????????????? | | ? """ """ #??????????????????????????? | | ??? #########??????????????????? | | ????? ? /o #??????????????????? | | ????###+###?# #??????????????????? | | ???## ### #??????????????????? | | ??## #h?????????????????? | | ??# % +??????????????????? | | ??# #??????????????????? | | ??# #####@#####??????????????????? | | ??## # #? ?????????????????????? | | ??# "# "" ?Y?????????????????? | | ??# Y"# """ #??????????????????? | | ??## ""# """ Y#?????????????????? | | ???### ### """ ##Y????????????????? | | ?????# #?# """ #??????????????????? | | ?????# #?#? #?????????g????????? | | ?????# #?????? ]#??????????????????? | | ?????# #??????#####??????g???????????? | | ?????# #?????????????????????????????? | | ?????# #?????????????????????????????? | | ?????# #?????????????????????????????? | | ?????# #?????????????????????????????? | | ???### #?????????????????????????????? | | ???#"" #?????????????????????????????? | | ???#"T #?????????????????????????????? | | ???#"" #?????????????????????????????? | | ???### #?????????????????????????????? | | ?????# #?????????????????????????????? | | ?????# #??########???????????????????? | | ?????# #? #???????????????????? | | ?????# #? ##??????????????????? | | ?????# # """?????????????????? | | ?????# # R"?????????????????? | +----------------------------------------------------+ Best States ------------- Heat Dissipation 31 Coolant Potential 65 Energy Generation 14 Energy Capacity 280 Matter Stores 300 Matter Capacity 300 Sight Range 16 Terrain Scan Density 10 Armor Coverage 150 Evasion (%) 55 Recoil Reduction 3 Item Schematics ----------------- None Robot Schematics ------------------ None Fabricated ------------ Nothing Alien Tech Used ----------------- None Achievements -------------- None Challenges ------------ None Game ------ Seed IntegratedShrapnelDriver Manual? 0 Play Time 00:13:11 Cumulative 321.4 hours Start 2022.09.06 @ 07:05:20 End 2022.09.06 @ 07:19:09 Sessions 1 Manual Loads 0 Difficulty Rogue Special Mode None Game No. 369 Rogue 369 Adventurer 0 Explorer 0 Win Type - Total 11 Types 8/0/2/1/0/0/0/0/0 Lore% 79 Gallery% 88 Achievement% 77 Wizard Run 0 Options --------- ASCII 0 Keyboard 0 Movement Numpad Keybinds 0 Fullscreen 1 Font 18/Terminus Map View 76x50 Tactical HUD 1 Map Filters NONE Filters NONE Steam 1 RUN: 5dd21964-234f-4b76-abaf-8bbed7ff9432